fUST/lending_fUST_20250301
["ID","MTS","AMOUNT","RATE_DAILY","PERIOD"]
[354901222,1740803455974,-500.0,0.00040546,2]
[354901223,1740803455983,-561.25,0.00040546,2]
[354901224,1740803455992,-752.86,0.00040546,2]
[354901225,1740803456002,-567.98,0.00040546,2]
[354901226,1740803456011,-500.0,0.00040546,2]
[354901227,1740803456020,-508.8915551,0.00040546,2]
[354901228,1740803456029,-500.0,0.00040546,2]
[354901229,1740803456038,-1610.65,0.00040546,2]
[354901230,1740803456047,-670.4,0.00040546,2]
[354901231,1740803456056,-500.0,0.00040546,2]
[354901232,1740803456065,-500.0,0.00040546,2]
[354901233,1740803456075,-500.0,0.00040546,2]
[354901234,1740803456084,-1489.9,0.00040546,2]
[354901235,1740803456093,-500.0,0.00040546,2]
[354901236,1740803456103,-1164.12,0.00040546,2]
[354901237,1740803456112,-500.0,0.00040546,2]
[354901238,1740803456121,-500.0,0.00040546,2]
[354901239,1740803456131,-1530.31,0.00040546,2]
[354901240,1740803456140,-500.0,0.00040546,2]
[354901241,1740803456149,-500.0,0.00040546,2]
[354901242,1740803456158,-500.0,0.00040546,2]
[354901243,1740803456168,-500.0,0.00040546,2]
[354901244,1740803456177,-500.0,0.00040546,2]
[354901245,1740803456189,-569.22,0.00040546,2]
[354901246,1740803456202,-500.0,0.00040546,2]
[354901247,1740803456211,-500.0,0.00040546,2]
[354901248,1740803456220,-721.19,0.00040547,2]
[354901249,1740803456229,-500.0,0.00040547,2]
[354901250,1740803456239,-500.0,0.00040547,2]
[354901251,1740803456248,-612.43,0.00040547,2]
[354901252,1740803456257,-530.32,0.00040547,2]
[354901253,1740803456266,-500.0,0.00040547,2]
[354901254,1740803456275,-500.0,0.00040547,2]
[354901255,1740803456284,-500.0,0.00040547,2]
[354901256,1740803456294,-500.0,0.00040547,2]
[354901257,1740803456304,-500.0,0.00040547,2]
[354901258,1740803456315,-504.51657921,0.00040547,2]
[354901259,1740803456324,-500.0,0.00040547,2]
[354901260,1740803456333,-508.55729794,0.00040547,2]
[354901261,1740803456343,-500.0,0.00040547,2]
[354901262,1740803456353,-500.0,0.00040547,2]
[354901263,1740803456363,-500.0,0.00040547,2]
[354901264,1740803456372,-500.0,0.00040547,2]
[354901265,1740803456384,-500.0,0.00040547,2]
[354901266,1740803456404,-500.0,0.00040547,2]
[354901267,1740803456420,-500.0,0.00040547,2]
[354901268,1740803456429,-500.0,0.00040547,2]
[354901269,1740803456438,-500.0,0.00040547,2]
[354901270,1740803456447,-906.04,0.00040547,2]
[354901271,1740803456456,-500.0,0.00040547,2]
[354901272,1740803456466,-500.0,0.00040547,2]
[354901273,1740803456475,-500.0,0.00040547,2]
[354901274,1740803456484,-518.40513653,0.00040547,2]
[354901275,1740803456494,-500.0,0.00040547,2]
[354901276,1740803456503,-1268.4,0.00040547,2]
[354901277,1740803456512,-500.0,0.00040547,2]
[354901278,1740803456521,-500.0,0.00040547,2]
[354901279,1740803456530,-500.0,0.00040547,2]
[354901280,1740803456539,-500.0,0.00040547,2]
[354901281,1740803456548,-500.0,0.00040547,2]
[354901282,1740803456557,-500.0,0.00040547,2]
[354901283,1740803456566,-988.71,0.00040547,2]
[354901284,1740803456575,-500.0,0.00040547,2]
[354901285,1740803456585,-2654.46,0.00040547,2]
[354901286,1740803456594,-500.0,0.00040547,2]
[354901287,1740803456603,-500.0,0.00040547,2]
[354901288,1740803456612,-500.0,0.00040547,2]
[354901289,1740803456621,-500.0,0.00040547,2]
[354901290,1740803456630,-500.0,0.00040547,2]
[354901291,1740803456639,-686.52,0.00040547,2]
[354901292,1740803456649,-500.0,0.00040547,2]
[354901293,1740803456658,-576.58,0.00040547,2]
[354901294,1740803456667,-500.0,0.00040547,2]
[354901295,1740803456676,-500.0,0.00040547,2]
[354901296,1740803456685,-500.0,0.00040547,2]
[354901297,1740803456809,-7937.43,0.00040547,2]
[354901298,1740803456819,-500.0,0.00040547,2]
[354901299,1740803456828,-805.07,0.00040547,2]
[354901300,1740803456838,-500.0,0.00040547,2]
[354901301,1740803456847,-500.0,0.00040547,2]
[354901302,1740803456856,-300.0,0.00040547,120]
[354901303,1740803456866,-500.0,0.00040547,2]
[354901304,1740803456875,-548.77044621,0.00040547,2]
[354901305,1740803456885,-500.0,0.00040547,2]
[354901306,1740803456894,-500.0,0.00040547,2]
[354901307,1740803456903,-500.0,0.00040547,2]
[354901308,1740803456913,-500.0,0.00040547,2]
[354901309,1740803456922,-750.68,0.00040547,2]
[354901310,1740803456931,-502.9266679,0.00040547,2]
[354901311,1740803456940,-500.0,0.00040547,2]
[354901312,1740803456949,-500.0,0.00040547,2]
[354901313,1740803456959,-500.0,0.00040547,2]
[354901314,1740803456968,-1966.72,0.00040547,2]
[354901315,1740803456978,-500.0,0.00040547,2]
[354901316,1740803456987,-500.0,0.00040547,2]
[354901317,1740803456996,-500.0,0.00040547,2]
[354901318,1740803457005,-237.51748074,0.00040547,2]
[354901319,1740803457015,-500.0,0.00040547,2]
[354901320,1740803457024,-500.0,0.00040547,2]
[354901321,1740803457033,-500.0,0.00040547,2]
[354901322,1740803457043,-912.01,0.00040547,2]
[354901323,1740803457052,-500.0,0.00040547,2]
[354901324,1740803457062,-500.0,0.00040547,2]
[354901325,1740803457071,-500.0,0.00040547,2]
[354901326,1740803457080,-503.66122976,0.00040547,2]
[354901327,1740803457090,-500.0,0.00040547,2]
[354901328,1740803457101,-500.0,0.00040547,2]
[354901329,1740803457111,-500.0,0.00040547,2]
[354901330,1740803457121,-534.51152598,0.00040547,2]
[354901331,1740803457131,-1000.0,0.00040547,2]
[354901332,1740803457140,-500.0,0.00040547,2]
[354901333,1740803457150,-500.0,0.00040547,2]
[354901334,1740803457169,-1958.03,0.00040547,2]
[354901335,1740803457181,-500.0,0.00040547,2]
[354901336,1740803457191,-500.0,0.00040547,2]
[354901337,1740803457201,-500.0,0.00040547,2]
[354901338,1740803457211,-506.57766474,0.00040547,2]
[354901339,1740803457221,-2368.61,0.00040547,2]
[354901340,1740803457230,-500.0,0.00040547,2]
[354901341,1740803457240,-500.0,0.00040547,2]
[354901342,1740803457250,-500.0,0.00040547,2]
[354901343,1740803457260,-500.0,0.00040547,2]
[354901344,1740803457270,-1371.21,0.00040547,2]
[354901345,1740803457280,-500.0,0.00040547,2]
[354901346,1740803457290,-504.15923433,0.00040547,2]
[354901347,1740803457300,-500.0,0.00040547,2]
[354901348,1740803457313,-500.0,0.00040547,2]
[354901349,1740803457323,-500.0,0.00040547,2]
[354901350,1740803457333,-500.0,0.00040547,2]
[354901351,1740803457343,-500.0,0.00040547,2]
[354901352,1740803457354,-500.0,0.00040547,2]
[354901353,1740803457364,-500.0,0.00040547,2]
[354901354,1740803457373,-500.0,0.00040547,2]
[354901355,1740803457385,-1052.58,0.00040547,2]
[354901356,1740803457395,-500.0,0.00040547,2]
[354901357,1740803457405,-500.0,0.00040547,2]
[354901358,1740803457415,-500.0,0.00040547,2]
[354901359,1740803457424,-500.0,0.00040547,2]
[354901360,1740803457435,-500.0,0.00040547,2]
[354901361,1740803457445,-500.0,0.00040547,2]
[354901362,1740803457455,-2032.81,0.00040547,2]
[354901363,1740803457465,-500.0,0.00040547,2]
[354901364,1740803457476,-500.0,0.00040547,2]
[354901365,1740803457485,-500.0,0.00040547,2]
[354901366,1740803457495,-500.0,0.00040547,2]
[354901367,1740803457505,-500.0,0.00040547,2]
[354901368,1740803457515,-500.0,0.00040547,2]
[354901369,1740803457525,-919.37,0.00040547,2]
[354901370,1740803457535,-500.0,0.00040547,2]
[354901371,1740803457545,-500.0,0.00040547,2]
[354901372,1740803457554,-500.0,0.00040547,2]
[354901373,1740803457564,-500.0,0.00040547,2]
[354901374,1740803457573,-500.0,0.00040547,2]
[354901375,1740803457582,-500.0,0.00040547,2]
[354901376,1740803457592,-719.72,0.00040547,2]
[354901377,1740803457602,-500.0,0.00040547,2]
[354901378,1740803457612,-500.0,0.00040547,2]
[354901379,1740803457621,-500.0,0.00040547,2]
[354901380,1740803457632,-500.0,0.00040547,2]
[354901381,1740803457642,-1007.3,0.00040547,2]
[354901382,1740803457651,-500.0,0.00040547,2]
[354901383,1740803457661,-500.0,0.00040547,2]
[354901384,1740803457690,-500.0,0.00040547,2]
[354901385,1740803457711,-500.0,0.00040547,2]
[354901386,1740803457734,-500.0,0.00040547,2]
[354901387,1740803457755,-500.0,0.00040547,2]
[354901388,1740803457781,-500.0,0.00040547,2]
[354901389,1740803457804,-727.63,0.00040547,2]
[354901390,1740803457822,-804.31,0.00040547,2]
[354901391,1740803457837,-500.0,0.00040547,2]
[354901392,1740803457854,-386.30730932,0.00040547,2]
[354901393,1740803457873,-500.0,0.00040547,2]
[354901394,1740803457894,-480.343942,0.00040547,14]
[354901395,1740803457907,-500.0,0.00040547,2]
[354901396,1740803457926,-500.0,0.00040547,2]
[354901397,1740803457941,-787.09,0.00040547,2]
[354901398,1740803457960,-480.343942,0.00040547,14]
[354901399,1740803457977,-500.0,0.00040547,2]
[354901400,1740803457998,-1454.97,0.00040547,2]
[354901401,1740803458018,-3506.83,0.00040547,2]
[354901402,1740803458044,-2172.42,0.00040547,2]
[354901403,1740803458064,-193.997249,0.00040547,14]
[354901404,1740803458082,-500.0,0.00040547,2]
[354901405,1740803458103,-193.997249,0.00040547,14]
[354901406,1740803458123,-500.0,0.00040547,2]
[354901407,1740803458141,-609.77,0.00040547,2]
[354901408,1740803458159,-525.9692484,0.00040547,2]
[354901409,1740803458176,-505.41650911,0.00040547,2]
[354901410,1740803458193,-500.0,0.00040547,2]
[354901411,1740803458209,-522.21,0.00040547,2]
[354901412,1740803458225,-500.0,0.00040547,2]
[354901413,1740803458241,-500.0,0.00040547,2]
[354901414,1740803458256,-566.73686575,0.00040547,2]
[354901415,1740803458273,-816.9,0.00040547,2]
[354901416,1740803458290,-330.562871,0.00040547,14]
[354901417,1740803458308,-500.0,0.00040547,2]
[354901418,1740803458323,-330.562871,0.00040547,14]
[354901419,1740803458340,-500.0,0.00040547,2]
[354901420,1740803458356,-517.70690516,0.00040547,2]
[354901421,1740803458371,-552.87,0.00040547,2]
[354901422,1740803458393,-1508.91,0.00040547,2]
[354901423,1740803458408,-580.66340477,0.00040547,2]
[354901424,1740803458424,-500.0,0.00040547,2]
[354901425,1740803458439,-500.0,0.00040547,2]
[354901426,1740803458455,-500.0,0.00040547,2]
[354901427,1740803458471,-444.73352121,0.00040547,2]
[354901428,1740803458485,-500.0,0.00040547,2]
[354901429,1740803458500,-151.0,0.00040547,14]
[354901430,1740803458514,-500.0,0.00040547,2]
[354901431,1740803458529,-500.0,0.00040547,2]
[354901432,1740803458544,-500.0,0.00040547,2]
[354901433,1740803458559,-500.0,0.00040547,2]
[354901434,1740803458573,-520.93932452,0.00040547,2]
[354901435,1740803458588,-1506.29,0.00040547,2]
[354901436,1740803458604,-579.37,0.00040547,2]
[354901437,1740803458618,-500.0,0.00040547,2]
[354901438,1740803458634,-500.0,0.00040547,2]
[354901439,1740803458647,-500.0,0.00040547,2]
[354901440,1740803458663,-500.0,0.00040547,2]
[354901441,1740803458678,-151.0,0.00040547,14]
[354901442,1740803458693,-151.0,0.00040547,14]
[354901443,1740803458707,-231.467165,0.00040547,14]
[354901444,1740803458722,-1874.73,0.00040547,2]
[354901445,1740803458737,-158.747667,0.00040547,14]
[354901446,1740803458752,-231.467165,0.00040547,14]
[354901447,1740803458769,-158.747667,0.00040547,14]
[354901448,1740803458788,-500.0,0.00040547,2]
[354901449,1740803458804,-151.0,0.00040547,14]
[354901450,1740803458825,-838.156336,0.00040547,14]
[354901451,1740803458843,-838.156336,0.00040547,14]
[354901452,1740803458858,-191.476866,0.00040547,14]
[354901453,1740803458872,-191.476866,0.00040547,14]
[354901454,1740803458887,-157.660582,0.00040547,14]
[354901455,1740803458901,-157.660582,0.00040547,14]
[354901456,1740803458916,-500.0,0.00040547,2]
[354901457,1740803458932,-410.16438589,0.00040547,2]
[354901458,1740803458947,-500.0,0.00040547,2]
[354901459,1740803458963,-1529.918084,0.00040547,14]
[354901460,1740803458979,-1529.918084,0.00040547,14]
[354901461,1740803458993,-151.0,0.00040547,14]
[354901462,1740803459009,-151.0,0.00040547,14]
[354901463,1740803459024,-151.0,0.00040547,14]
[354901464,1740803459039,-153.636533,0.00040547,14]
[354901465,1740803459054,-153.636533,0.00040547,14]
[354901466,1740803459075,-500.0,0.00040547,2]
[354901467,1740803459088,-2251.134009,0.00040547,14]
[354901468,1740803459097,-2251.134009,0.00040547,14]
[354901469,1740803459108,-153.636533,0.00040547,14]
[354901470,1740803459308,-153.636533,0.00040547,14]
[354901471,1740803459337,-500.0,0.00040547,2]
[354901472,1740803459346,-2251.134009,0.00040547,14]
[354901473,1740803459358,-2251.134009,0.00040547,14]
[354901474,1740803459368,-500.0,0.00040547,2]
[354901475,1740803459378,-500.0,0.00040547,2]
[354901476,1740803459390,-513.75,0.00040547,2]
[354901477,1740803459400,-151.0,0.00040547,14]
[354901478,1740803459409,-456.11946,0.00040547,14]
[354901479,1740803459419,-456.11946,0.00040547,14]
[354901480,1740803459428,-456.11946,0.00040547,14]
[354901481,1740803459438,-456.11946,0.00040547,14]
[354901482,1740803459447,-500.0,0.00040547,2]
[354901483,1740803459456,-812.665492,0.00040547,14]
[354901484,1740803459466,-878.759832,0.00040547,14]
[354901485,1740803459477,-878.759832,0.00040547,14]
[354901486,1740803459486,-823.07,0.00040547,2]
[354901487,1740803459495,-360.470834,0.00040547,14]
[354901488,1740803459504,-360.470834,0.00040547,14]
[354901489,1740803459514,-360.470834,0.00040547,14]
[354901490,1740803459524,-360.470834,0.00040547,14]
[354901491,1740803459533,-2500.008198,0.00040547,14]
[354901492,1740803459545,-2500.008198,0.00040547,14]
[354901493,1740803459554,-151.0,0.00040547,14]
[354901494,1740803459564,-151.0,0.00040547,14]
[354901495,1740803459573,-151.0,0.00040547,14]
[354901496,1740803459582,-283.187842,0.00040547,14]
[354901497,1740803459591,-174.723508,0.00040547,14]
[354901498,1740803459601,-174.723508,0.00040547,14]
[354901499,1740803459611,-722.851103,0.00040547,14]
[354901500,1740803459620,-722.851103,0.00040547,14]
[354901501,1740803459629,-1856.322944,0.00040547,14]
[354901502,1740803459640,-1856.322944,0.00040547,14]
[354901503,1740803459650,-375.375274,0.00040547,14]
[354901504,1740803459659,-375.375274,0.00040547,14]
[354901505,1740803459669,-358.228782,0.00040547,14]
[354901506,1740803459679,-358.228782,0.00040547,14]
[354901507,1740803459690,-234.515658,0.00040547,14]
[354901508,1740803459699,-151.0,0.00040547,14]
[354901509,1740803459709,-590.158248,0.00040547,14]
[354901510,1740803459719,-234.515658,0.00040547,14]
[354901511,1740803459728,-151.0,0.00040547,7]
[354901512,1740803459737,-590.158248,0.00040547,14]
[354901513,1740803459746,-198.236088,0.00040547,14]
[354901514,1740803459756,-841.368076,0.00040547,14]
[354901515,1740803459765,-841.368076,0.00040547,14]
[354901516,1740803459775,-503.01819855,0.00040573,5]
[354901517,1740803459784,-500.0,0.00040573,5]
[354901518,1740803459793,-500.0,0.00040573,5]
[354901519,1740803459803,-511.26437518,0.00040573,5]
[354901520,1740803459812,-500.0,0.00040573,5]
[354901521,1740803459822,-500.0,0.00040573,5]
[354901522,1740803459831,-500.0,0.00040573,5]
[354901523,1740803459841,-500.0,0.00040573,5]
[354901524,1740803459850,-166.48973665,0.00040573,5]
[354901525,1740803459859,-150.99911135,0.00040573,5]
[354901526,1740803459868,-500.0,0.00040573,5]
[354901527,1740803459878,-500.0,0.00040573,5]
[354901528,1740803459887,-367.80974713,0.00040573,5]
[354901529,1740803459896,-500.0,0.00040573,5]
[354901530,1740803459905,-500.0,0.00040573,5]
[354901531,1740803459914,-500.0,0.00040573,5]
[354901532,1740803459923,-500.0,0.00040573,5]
[354901533,1740803459932,-501.49573493,0.00040573,5]
[354901534,1740803459942,-500.0,0.00040573,5]
[354901535,1740803459951,-885.7805,0.00040578,2]
[354901536,1740803459960,-160.0,0.00040608,4]
[354901537,1740803459969,-974.35855,0.00040633,2]
[354901538,1740803459979,-1071.794405,0.00040688,2]
[354901539,1740803459989,-3152.67,0.000407,30]
[354901540,1740803459999,-500.0,0.00040713,5]
[354901541,1740803460009,-4229.2,0.00040719,2]
[354901542,1740803460019,-1687.34,0.00040719,5]
[354901543,1740803460030,-2152.84,0.00040719,2]
[354901544,1740803460041,-1534.89,0.00040719,2]
[354901545,1740803460051,-1558.77,0.00040719,2]
[354901546,1740803460061,-500.0,0.00040719,2]
[354901547,1740803460070,-1000.0,0.00040743,2]
[354901548,1740803460080,-583.40651324,0.00040752,28]
[354901549,1740803460090,-5205.54244575,0.00040771,120]
[354901550,1740803460100,-2000.0,0.000408,90]
[354901551,1740803460110,-2000.0,0.000408,120]
[354901552,1740803460119,-202.23882308,0.000408,8]
[354901553,1740803460128,-160.96805121,0.00040819,30]
[354901554,1740803460138,-507.26531725,0.00040819,2]
[354901555,1740803460148,-850.63,0.00040819,2]
[354901556,1740803460157,-500.0,0.00040819,2]
[354901557,1740803460167,-548.28,0.00040819,2]
[354901558,1740803460177,-720.36,0.00040819,2]
[354901559,1740803460187,-871.86,0.00040819,2]
[354901560,1740803460196,-1325.53,0.00040819,2]
[354901561,1740803460206,-500.0,0.00040819,2]
[354901562,1740803460216,-500.0,0.00040819,2]
[354901563,1740803460226,-500.0,0.00040819,2]
[354901564,1740803460235,-500.0,0.00040819,2]
[354901565,1740803460244,-503.79005352,0.00040819,2]
[354901566,1740803460254,-678.73,0.00040819,2]
[354901567,1740803460264,-500.0,0.00040819,2]
[354901568,1740803460274,-2563.23,0.00040819,2]
[354901569,1740803460283,-2728.93,0.00040819,2]
[354901570,1740803460292,-584.61,0.00040819,2]
[354901571,1740803460303,-500.0,0.00040819,2]
[354901572,1740803460314,-500.0,0.00040819,2]
[354901573,1740803460324,-504.83650581,0.00040819,2]
[354901574,1740803460333,-3114.31,0.00040819,2]
[354901575,1740803460342,-502.03,0.00040819,2]
[354901576,1740803460352,-643.0,0.00040819,2]
[354901577,1740803460361,-1859.8,0.00040819,2]
[354901578,1740803460371,-1073.59,0.00040819,2]
[354901579,1740803460380,-500.0,0.00040819,2]
[354901580,1740803460391,-500.0,0.00040819,2]
[354901581,1740803460400,-650.09,0.00040819,2]
[354901582,1740803460410,-585.13,0.00040819,2]
[354901583,1740803460419,-500.0,0.00040819,2]
[354901584,1740803460428,-2135.35,0.00040819,2]
[354901585,1740803460437,-501.91751933,0.00040819,2]
[354901586,1740803460446,-540.61,0.00040819,2]
[354901587,1740803460455,-6533.75,0.00040819,2]
[354901588,1740803460465,-1944.15,0.00040819,2]
[354901589,1740803460474,-510.97,0.00040819,2]
[354901590,1740803460483,-2457.94,0.00040819,2]
[354901591,1740803460493,-500.0,0.00040819,2]
[354901592,1740803460503,-1143.0,0.00040819,2]
[354901593,1740803460512,-11697.6,0.00040819,2]
[354901594,1740803460522,-18691.78,0.00040819,2]
[354901595,1740803460531,-839.02,0.00040819,2]
[354901596,1740803460541,-500.0,0.00040819,2]
[354901597,1740803460551,-500.0,0.00040819,2]
[354901598,1740803460560,-3559.27,0.00040819,2]
[354901599,1740803460570,-500.0,0.00040819,2]
[354901600,1740803460579,-2285.54,0.00040819,2]
[354901601,1740803460589,-6209.93,0.00040819,2]
[354901602,1740803460598,-500.0,0.00040819,2]
[354901603,1740803460608,-1172.59,0.00040819,2]
[354901604,1740803460617,-1176.44,0.00040819,2]
[354901605,1740803460627,-3470.69,0.00040819,2]
[354901606,1740803460638,-500.0,0.00040819,2]
[354901607,1740803460647,-1131.53,0.00040819,2]
[354901608,1740803460657,-1772.77,0.00040819,2]
[354901609,1740803460666,-500.0,0.00040819,2]
[354901610,1740803460675,-1017.43,0.00040819,2]
[354901611,1740803460684,-2165.05,0.00040819,2]
[354901612,1740803460694,-1292.63,0.00040819,2]
[354901613,1740803460703,-949.19,0.00040819,2]
[354901614,1740803460713,-500.0,0.00040819,2]
[354901615,1740803460723,-2365.8,0.00040819,2]
[354901616,1740803460733,-669.5,0.00040819,2]
[354901617,1740803460742,-609.25,0.00040819,2]
[354901618,1740803460754,-1699.91,0.00040819,2]
[354901619,1740803460763,-500.0,0.00040819,2]
[354901620,1740803460772,-500.0,0.00040819,2]
[354901621,1740803460783,-610.33,0.00040819,2]
[354901622,1740803460792,-581.76,0.00040819,2]
[354901623,1740803460801,-1794.47,0.00040819,2]
[354901624,1740803460812,-686.98,0.00040819,2]
[354901625,1740803460822,-500.0,0.00040819,2]
[354901626,1740803460831,-1867.18,0.00040819,2]
[354901627,1740803460842,-723.9,0.00040819,2]
[354901628,1740803460852,-41264.73,0.00040819,2]
[354901629,1740803460863,-500.0,0.00040819,2]
[354901630,1740803460872,-772.66,0.00040819,2]
[354901631,1740803460883,-231.384318,0.00040819,14]
[354901632,1740803460893,-909.69,0.00040819,2]
[354901633,1740803460902,-4806.0,0.00040819,2]
[354901634,1740803460912,-231.384318,0.00040819,14]
[354901635,1740803460921,-1782.32,0.00040819,2]
[354901636,1740803460930,-1945.53,0.00040819,2]
[354901637,1740803460939,-500.0,0.00040819,2]
[354901638,1740803460948,-500.0,0.00040819,2]
[354901639,1740803460958,-2683.39,0.00040819,2]
[354901640,1740803460967,-1062.1,0.00040819,2]
[354901641,1740803460976,-2632.65,0.00040819,2]
[354901642,1740803460986,-9364.82,0.00040819,2]
[354901643,1740803460995,-3326.42,0.00040819,2]
[354901644,1740803461004,-821.78,0.00040819,2]
[354901645,1740803461013,-2646.79,0.00040819,2]
[354901646,1740803461023,-641.42,0.00040819,2]
[354901647,1740803461033,-3352.65,0.00040819,2]
[354901648,1740803461043,-13507.68,0.00040819,2]
[354901649,1740803461052,-793.88,0.00040819,2]
[354901650,1740803461061,-1240.41,0.00040819,2]
[354901651,1740803461071,-1473.52,0.00040819,2]
[354901652,1740803461081,-1898.48,0.00040819,2]
[354901653,1740803461092,-685.23,0.00040819,2]
[354901654,1740803461101,-7916.33,0.00040819,2]
[354901655,1740803461111,-500.0,0.00040819,2]
[354901656,1740803461121,-500.0,0.00040819,2]
[354901657,1740803461131,-667.16,0.00040819,2]
[354901658,1740803461142,-500.0,0.00040819,2]
[354901659,1740803461151,-5557.91,0.00040819,2]
[354901660,1740803461161,-500.0,0.0004082,2]
[354901661,1740803461170,-500.0,0.0004082,2]
[354901662,1740803461179,-500.0,0.0004082,2]
[354901663,1740803461189,-509.14,0.0004082,2]
[354901664,1740803461199,-500.0,0.0004082,2]
[354901665,1740803461208,-501.67719612,0.0004082,2]
[354901666,1740803461217,-506.95115111,0.0004082,2]
[354901667,1740803461226,-500.0,0.0004082,2]
[354901668,1740803461236,-500.0,0.0004082,2]
[354901669,1740803461245,-1926.06,0.0004082,2]
[354901670,1740803461254,-500.0,0.0004082,2]
[354901671,1740803461263,-865.2,0.0004082,2]
[354901672,1740803461273,-500.0,0.0004082,2]
[354901673,1740803461282,-224.32975902,0.0004082,2]
[354901674,1740803461291,-500.0,0.0004082,2]
[354901675,1740803461300,-520.03020786,0.0004082,2]
[354901676,1740803461311,-500.0,0.0004082,2]
[354901677,1740803461321,-530.16,0.0004082,2]
[354901678,1740803461330,-500.0,0.0004082,2]
[354901679,1740803461339,-500.0,0.0004082,2]
[354901680,1740803461349,-500.0,0.0004082,2]
[354901681,1740803461358,-500.0,0.0004082,2]
[354901682,1740803461367,-500.0,0.0004082,2]
[354901683,1740803461376,-500.0,0.0004082,2]
[354901684,1740803461388,-609.43,0.0004082,2]
[354901685,1740803461397,-509.37184616,0.0004082,2]
[354901686,1740803461407,-500.0,0.0004082,2]
[354901687,1740803461416,-500.0,0.0004082,2]
[354901688,1740803461425,-500.0,0.0004082,2]
[354901689,1740803461434,-714.81,0.0004082,2]
[354901690,1740803461443,-500.0,0.0004082,2]
[354901691,1740803461454,-500.0,0.0004082,2]
[354901692,1740803461463,-500.0,0.0004082,2]
[354901693,1740803461472,-500.0,0.0004082,2]
[354901694,1740803461482,-500.0,0.0004082,2]
[354901695,1740803461491,-1034.59,0.0004082,2]
[354901696,1740803461500,-1016.26,0.0004082,2]
[354901697,1740803461510,-500.0,0.0004082,2]
[354901698,1740803461519,-500.0,0.0004082,2]
[354901699,1740803461528,-251.63711037,0.0004082,2]
[354901700,1740803461537,-500.0,0.0004082,2]
[354901701,1740803461546,-500.0,0.0004082,2]
[354901702,1740803461556,-759.87,0.0004082,2]
[354901703,1740803461565,-500.0,0.0004082,2]
[354901704,1740803461575,-500.0,0.0004082,2]
[354901705,1740803461585,-502.19316259,0.0004082,2]
[354901706,1740803461594,-500.0,0.0004082,2]
[354901707,1740803461604,-647.46,0.0004082,2]
[354901708,1740803461613,-500.0,0.0004082,2]
[354901709,1740803461622,-500.0,0.0004082,2]
[354901710,1740803461631,-500.0,0.0004082,2]
[354901711,1740803461641,-500.0,0.0004082,2]
[354901712,1740803461650,-626.46,0.0004082,2]
[354901713,1740803461660,-500.0,0.0004082,2]
[354901714,1740803461669,-500.0,0.0004082,2]
[354901715,1740803461679,-505.98815368,0.0004082,2]
[354901716,1740803461689,-500.0,0.0004082,2]
[354901717,1740803461699,-330.562871,0.0004082,14]
[354901718,1740803461708,-330.562871,0.0004082,14]
[354901719,1740803461717,-500.0,0.0004082,2]
[354901720,1740803461727,-200.0,0.0004082,2]
[354901721,1740803461737,-500.0,0.0004082,2]